bitfinex-derivatives/quotes_SOLF0:USTF0_20250625
["timestamp","ask_amount","ask_price","bid_price","bid_amount"]
[1750852391891,39.07340045,146.34,146.29,8.43900078]
[1750852392093,34.2,146.34,146.29,8.43900078]
[1750852392492,39.0742884,146.34,146.29,8.43900078]
[1750852392897,34.2,146.34,146.29,8.43900078]
[1750852394195,39.07428808,146.34,146.29,8.43900078]
[1750852394398,34.2,146.34,146.29,8.43900078]
[1750852395293,39.07836383,146.34,146.29,8.43900078]
[1750852395492,34.2,146.34,146.29,8.43900078]
[1750852397299,34.2,146.34,146.3,8.43900078]
[1750852397692,34.2,146.34,146.29,8.43900078]
[1750852398298,34.2,146.34,146.3,8.43900078]
[1750852400101,3.36118764,146.35,146.3,8.43900078]
[1750852400418,4.88383366,146.34,146.3,8.43900078]
[1750852400703,6.58637799,146.36,146.3,8.43900078]
[1750852400890,4.88379115,146.35,146.31,8.43900078]
[1750852401097,2.4115,146.36,146.31,8.43900078]
[1750852401406,4.88339951,146.35,146.31,8.43900078]
[1750852401603,36.5715,146.36,146.31,8.43900078]
[1750852401803,4.88340902,146.35,146.31,8.43900078]
[1750852402004,4.88556827,146.34,146.31,8.43900078]
[1750852402207,36.5715,146.36,146.31,8.43900078]
[1750852402412,4.88527508,146.35,146.31,8.43900078]
[1750852402598,4.88527508,146.34,146.31,8.43900078]
[1750852402903,3.36118764,146.35,146.3,8.43900078]
[1750852403110,4.88562407,146.34,146.3,8.43900078]
[1750852403301,3.36118764,146.31,146.28,8.43900078]
[1750852403502,3.36118764,146.29,146.27,8.43900078]
[1750852403710,3.36118764,146.29,146.26,8.43900078]
[1750852405402,3.36118764,146.29,146.27,8.43900078]
[1750852406098,3.36118764,146.29,146.26,8.43900078]
[1750852406300,3.36118764,146.27,146.24,8.46360662]
[1750852406604,3.36118764,146.27,146.2,108.5995091]
[1750852406605,3.36118764,146.25,146.21,12.69209059]
[1750852407701,34.16,146.26,146.2,121.29159969]
[1750852407905,34.16,146.26,146.21,12.69209059]
[1750852408902,34.16,146.26,146.25,6.8345]
[1750852409302,37.52118764,146.26,146.24,6.8348]
[1750852409505,37.52118764,146.26,146.2,12.69209059]
[1750852409699,37.52118764,146.26,146.19,12.69209059]
[1750852409700,34.16,146.26,146.19,12.69209059]
[1750852409899,37.52118764,146.26,146.25,6.8345]
[1750852410309,37.52118764,146.26,146.2,12.69209059]
[1750852410510,37.52118764,146.26,146.19,12.69209059]
[1750852411110,3.36118764,146.24,146.19,12.69209059]
[1750852411804,3.36118764,146.24,146.18,15.07029059]
[1750852412206,3.36118764,146.24,146.23,6.8354]
[1750852412905,37.52118764,146.26,146.24,6.8349]
[1750852414520,37.52118764,146.26,146.25,6.8345]
[1750852416012,34.16,146.26,146.25,6.8345]
[1750852419824,3.36118764,146.28,146.27,6.8336]
[1750852421830,34.14,146.29,146.28,6.8331]
[1750852429030,37.50118764,146.32,146.31,6.8317]
[1750852436239,42.33966227,146.32,146.31,6.8317]
[1750852436646,42.33973388,146.32,146.31,6.8317]
[1750852436839,42.33973388,146.32,146.25,8.43017775]
[1750852437045,3.36118764,146.29,146.24,16.0901]
[1750852437242,3.36118764,146.29,146.23,8.43017775]
[1750852437243,34.14,146.28,146.23,8.43017775]
[1750852437445,34.14,146.28,146.21,52.54927823]
[1750852437446,34.14,146.28,146.27,6.8336]
[1750852443255,34.14,146.28,146.26,6.8338]
[1750852443450,3.36118764,146.27,146.26,6.8338]
[1750852447255,8.23955748,146.27,146.26,6.8338]
[1750852450863,3.36118764,146.27,146.26,6.8338]
[1750852451058,8.23192427,146.27,146.26,6.8338]
[1750852452661,3.36118764,146.27,146.26,6.8338]
[1750852453461,37.50118764,146.28,146.27,6.8336]
[1750852453662,42.37616589,146.28,146.27,6.8336]
[1750852453862,42.37610549,146.28,146.27,6.8336]
[1750852456562,37.50118764,146.28,146.27,6.8336]
[1750852456764,42.37697138,146.28,146.27,6.8336]
[1750852458064,42.37697138,146.28,146.26,6.8339]
[1750852458259,4.87578374,146.27,146.23,8.43017775]
[1750852458464,3.36118764,146.25,146.23,8.43017775]
[1750852458968,3.36118764,146.25,146.24,6.8346]
[1750852461781,8.23923585,146.25,146.24,6.8346]
[1750852461965,8.23923585,146.25,146.22,8.47193355]
[1750852462272,10.19708764,146.23,146.19,8.47193355]
[1750852462456,3.36118764,146.21,146.2,6.8366]
[1750852463665,3.36118764,146.21,146.19,6.8369]
[1750852463863,3.36118764,146.21,146.17,8.47193355]
[1750852464063,3.36118764,146.19,146.15,19.64280033]
[1750852464373,3.36118764,146.19,146.15,6.9349]
[1750852465557,34.12,146.18,146.17,6.8383]
[1750852473573,37.50118764,146.21,146.2,6.8368]
[1750852475177,0.9944,146.28,146.24,6.835]
[1750852475381,37.50118764,146.25,146.16,17.03828764]
[1750852475575,34.14,146.24,146.16,17.03828764]
[1750852476381,34.14,146.24,146.23,6.8354]
[1750852476680,37.50118764,146.25,146.16,17.03828764]
[1750852477182,37.50118764,146.25,146.18,3.36118764]
[1750852477982,37.50118764,146.25,146.24,6.835]
[1750852479778,3.36118764,146.26,146.25,39.33301236]
[1750852479982,37.48118764,146.26,146.25,39.33301236]
[1750852484187,34.12,146.26,146.25,39.33301236]
[1750852486979,34.12,146.26,146.25,32.49881236]
[1750852487889,34.12,146.26,146.25,39.33331236]
[1750852498898,4.87937518,146.27,146.26,6.834]
[1750852499102,624.54,146.29,146.25,32.49881236]
[1750852499302,627.90118764,146.29,146.25,32.49881236]
[1750852499493,627.90118764,146.29,146.28,6.8331]
[1750852499799,629.41961353,146.29,146.28,6.8331]
[1750852499997,624.54,146.29,146.28,6.8331]
[1750852500498,34.1,146.29,146.28,6.8331]
[1750852501794,28.3554,146.39,146.26,2.2932]
[1750852501795,4.87986135,146.33,146.26,2.2932]
[1750852501990,37.46118764,146.32,146.26,4.5378]
[1750852502197,37.46118764,146.32,146.26,12.98317624]
[1750852502497,37.46118764,146.32,146.31,6.8317]
[1750852506092,34.1,146.32,146.31,6.8317]
[1750852507301,37.46118764,146.32,146.26,4.5378]
[1750852507504,3.36118764,146.28,146.26,2.2932]
[1750852507699,37.46118764,146.28,146.27,6.8336]
[1750852510304,37.46118764,146.28,146.26,6.8338]
[1750852510906,44.29438764,146.28,146.26,6.8338]
[1750852511102,37.46118764,146.28,146.25,39.33321236]
[1750852511310,3.36118764,146.26,146.25,39.33321236]
[1750852511609,3.36118764,146.26,146.25,32.49881236]
[1750852512209,3.36118764,146.26,146.19,8.43394951]
[1750852512409,3.36118764,146.23,146.19,8.43394951]
[1750852512610,37.44118764,146.23,146.19,8.43394951]
[1750852513010,37.44118764,146.23,146.21,6.8361]
[1750852513207,37.44118764,146.23,146.18,10.69214951]
[1750852513409,3.36118764,146.21,146.18,2.2582]
[1750852513799,3.36118764,146.21,146.19,6.8373]
[1750852513999,3.36118764,146.21,146.18,2.2582]
[1750852514404,3.36118764,146.21,146.2,6.8368]
[1750852516005,3.36118764,146.21,146.18,6.8374]
[1750852516204,3.36118764,146.19,146.15,4.5214]
[1750852516713,3.36118764,146.19,146.18,6.8378]
[1750852517714,37.46118764,146.19,146.18,6.8378]
[1750852520715,37.46118764,146.19,146.14,10.73744951]
[1750852520914,34.1,146.19,146.14,2.3035]
[1750852521116,34.1,146.19,146.15,8.43394951]
[1750852521319,34.1,146.19,146.14,10.73744951]
[1750852521617,34.1,146.19,146.18,6.8378]
[1750852522019,34.1807,146.34,146.16,3.36118764]
[1750852522319,3.36118764,146.24,146.23,6.8354]
[1750852524216,3.36118764,146.24,146.17,13.11694951]
[1750852524521,3.36118764,146.22,146.17,4.683]
[1750852524722,34.1,146.21,146.2,6.8368]
[1750852525910,34.1,146.21,146.15,8.43394951]
[1750852526116,3.36118764,146.18,146.14,2.3035]
[1750852526411,3.36118764,146.18,146.17,6.8383]
[1750852526810,3.36118764,146.18,146.14,2.3035]
[1750852527016,34.1,146.17,146.16,6.8387]
[1750852528014,37.46118764,146.17,146.16,6.8387]
[1750852530615,3.36118764,146.21,146.2,6.8366]
[1750852530819,37.46118764,146.21,146.2,6.8366]
[1750852539925,37.46118764,146.21,146.19,6.8371]
[1750852541433,37.46118764,146.21,146.2,6.8369]
[1750852544730,3.36118764,146.24,146.23,6.8354]
[1750852544933,37.78118764,146.24,146.23,6.8354]
[1750852546036,34.42,146.24,146.23,6.8354]
[1750852553836,39.29839553,146.24,146.23,6.8354]
[1750852556537,39.30743002,146.24,146.23,6.8354]
[1750852557734,39.30743002,146.24,146.22,6.8357]
[1750852557939,4.88743002,146.23,146.22,6.8357]
[1750852559440,8.25243631,146.23,146.18,12.89270028]
[1750852559739,4.89124867,146.22,146.18,12.89270028]
[1750852559940,10.19688764,146.23,146.18,12.89270028]
[1750852560143,4.89098065,146.22,146.18,12.89270028]
[1750852560334,10.19688764,146.23,146.18,12.89270028]
[1750852560636,4.89097042,146.22,146.2,6.8365]
[1750852560836,10.19688764,146.23,146.2,6.8365]
[1750852561033,4.89047009,146.22,146.2,6.8365]
[1750852561238,10.19688764,146.23,146.2,6.8365]
[1750852561434,4.89045536,146.22,146.2,6.8365]
[1750852561639,10.19688764,146.23,146.2,6.8365]
[1750852562536,4.8862917,146.22,146.2,6.8365]
[1750852562733,10.19688764,146.23,146.21,6.8363]
[1750852563641,6.8359,146.22,146.2,6.8365]
[1750852563840,3.36118764,146.23,146.18,12.89270028]
[1750852565344,3.36118764,146.21,146.18,12.89270028]
[1750852566342,3.36118764,146.21,146.2,6.8369]
[1750852567847,8.23422398,146.23,146.22,6.8356]
[1750852568347,3.36118764,146.23,146.22,6.8356]
[1750852568648,34.42,146.24,146.23,6.8354]
[1750852568853,39.29250067,146.24,146.23,6.8354]
[1750852569838,34.42,146.27,146.22,8.43130028]
[1750852570051,34.42,146.27,146.23,2.3473]
[1750852570348,34.42,146.27,146.26,6.834]
[1750852570547,39.29136392,146.27,146.26,6.834]
[1750852571344,39.28801668,146.27,146.26,6.834]
[1750852572141,39.28801668,146.27,146.25,6.8344]
[1750852572346,8.22920432,146.26,146.25,6.8344]
[1750852572647,37.78118764,146.27,146.23,2.3473]
[1750852572849,37.78118764,146.27,146.26,6.834]
[1750852573051,42.65093855,146.27,146.26,6.834]
[1750852573348,37.64118764,146.27,146.26,6.834]
[1750852573553,42.51093855,146.27,146.26,6.834]
[1750852573752,37.64118764,146.27,146.26,6.834]
[1750852573948,42.51093855,146.27,146.26,6.834]
[1750852574149,34.28,146.27,146.26,6.834]
[1750852574851,39.16735496,146.28,146.27,6.8336]
[1750852577153,39.1681577,146.28,146.27,6.8336]
[1750852578851,9.19231125,146.3,146.29,6.8326]
[1750852579156,4.8881577,146.3,146.29,6.8326]
[1750852579953,37.64118764,146.31,146.3,6.8322]
[1750852580147,42.53365319,146.31,146.3,6.8322]
[1750852580665,39.17246555,146.31,146.3,6.8322]
[1750852580952,42.53365319,146.31,146.3,6.8322]
[1750852581151,46.83994956,146.31,146.29,6.8324]
[1750852581354,4.89246555,146.3,146.29,6.8324]
[1750852582961,4.92007751,146.3,146.29,6.8324]
[1750852585956,4.92802027,146.3,146.29,6.8324]
[1750852586659,4.92805615,146.3,146.29,6.8324]
[1750852588752,4.92917432,146.3,146.29,6.8324]
[1750852591663,37.64118764,146.31,146.3,6.8322]
[1750852591863,42.56913051,146.31,146.3,6.8322]
[1750852592358,42.56913051,146.31,146.24,2.231]
[1750852592557,3.36118764,146.29,146.24,2.231]
[1750852592757,3.36118764,146.27,146.24,2.231]
[1750852592956,3.36118764,146.27,146.23,4.6412]
[1750852593155,37.62118764,146.27,146.23,4.6412]
[1750852593965,42.54992264,146.27,146.23,4.6412]
[1750852594167,37.62118764,146.27,146.23,4.6412]
[1750852595164,37.62118764,146.27,146.26,6.834]
[1750852596757,34.26,146.27,146.26,6.834]
[1750852598766,4.93260248,146.29,146.28,6.8331]
[1750852599359,4.9243859,146.3,146.29,6.8326]
[1750852599559,4.92417063,146.32,146.26,3.36118764]
[1750852599759,4.92417063,146.31,146.26,3.36118764]
[1750852599959,34.26,146.33,146.32,6.8312]
[1750852600263,43.49208197,146.33,146.32,6.8312]
[1750852600565,38.56768623,146.33,146.32,6.8312]
[1750852600771,39.18405214,146.33,146.32,6.8312]
[1750852603159,34.26,146.33,146.32,6.8312]
[1750852603366,39.18335067,146.33,146.32,6.8312]
[1750852606570,4.92335067,146.33,146.32,6.8312]
[1750852606874,4.93835623,146.33,146.28,4.5407]
[1750852607063,34.22,146.34,146.28,4.5407]
[1750852607370,4.93835623,146.33,146.32,6.8312]
[1750852608574,34.22,146.34,146.33,6.8308]
[1750852608871,39.1640409,146.34,146.33,6.8308]
[1750852609667,34.22,146.34,146.33,6.8308]
[1750852609860,39.16346223,146.34,146.33,6.8308]
[1750852612769,39.17466031,146.34,146.33,6.8308]
[1750852615573,34.22,146.34,146.33,6.8308]
[1750852615877,39.18137822,146.34,146.33,6.8308]
[1750852618673,34.22,146.34,146.33,6.8308]
[1750852619181,39.17878331,146.34,146.33,6.8308]
[1750852619681,39.17928769,146.34,146.33,6.8308]
[1750852621488,39.17940544,146.34,146.33,6.8308]
[1750852625390,39.17555795,146.34,146.33,6.8308]
[1750852626693,34.22,146.34,146.33,6.8308]
[1750852626891,39.17555795,146.34,146.33,6.8308]
[1750852627095,34.22,146.34,146.33,6.8308]
[1750852627284,39.17555795,146.34,146.33,6.8308]
[1750852627596,34.22,146.34,146.33,6.8308]
[1750852627892,633.74178644,146.37,146.36,6.8294]
[1750852628092,643.03752114,146.37,146.36,6.8294]
[1750852630199,638.69592894,146.37,146.36,6.8294]
[1750852630495,643.04306856,146.37,146.36,6.8294]
[1750852631498,643.04281094,146.37,146.36,6.8294]
[1750852633193,643.04596921,146.37,146.36,6.8294]
[1750852634698,643.05032271,146.37,146.36,6.8294]
[1750852636195,643.05032271,146.37,146.3,2.2768]
[1750852636398,3.36118764,146.35,146.3,2.2768]
[1750852636698,4.96165427,146.34,146.3,2.2768]
[1750852636899,4.96202456,146.34,146.3,2.2768]
[1750852637295,4.96259041,146.34,146.3,2.2768]
[1750852637601,3.36118764,146.35,146.3,2.2768]
[1750852637792,4.96361985,146.34,146.3,2.2768]
[1750852637993,3.36118764,146.35,146.34,6.8303]
[1750852638197,8.32480749,146.35,146.34,6.8303]
[1750852638999,8.32081185,146.35,146.34,6.8303]
[1750852640303,7.11055247,146.35,146.34,6.8303]
[1750852640995,11.46171537,146.35,146.34,6.8303]
[1750852641198,7.11055247,146.35,146.34,6.8303]
[1750852641399,9.31078711,146.35,146.34,6.8303]
[1750852641598,4.95962421,146.35,146.34,6.8303]
[1750852642098,4.95962421,146.35,146.32,2.15092826]
[1750852642099,2.15092826,146.36,146.35,6.8298]
[1750852642299,9.31031765,146.36,146.35,6.8298]
[1750852643097,4.96148804,146.36,146.35,6.8298]
[1750852644898,39.8405988,146.37,146.36,6.8294]
[1750852645197,44.8081563,146.37,146.36,6.8294]
[1750852647392,10.6081563,146.37,146.36,6.8294]
[1750852649401,14.97680382,146.37,146.36,6.8294]
[1750852649601,18.33688428,146.37,146.33,10.68049829]
[1750852649804,3.36008046,146.34,146.3,10.71469829]
[1750852650010,4.9675575,146.33,146.3,10.71469829]
[1750852650199,3.36008046,146.34,146.3,10.71469829]
[1750852650200,4.98585505,146.32,146.3,10.71469829]
[1750852650398,3.36008046,146.34,146.3,10.71469829]
[1750852650599,4.9858549,146.33,146.3,10.71469829]
[1750852650800,3.36008046,146.34,146.3,10.71469829]
[1750852650801,3.36008046,146.34,146.33,6.8308]
[1750852651104,4.98590058,146.34,146.33,6.8308]
[1750852658901,4.28421482,146.35,146.34,6.8303]
[1750852659105,9.25880284,146.35,146.34,6.8303]
[1750852659508,37.48008046,146.36,146.35,6.8298]
[1750852659709,46.73895784,146.36,146.35,6.8298]
[1750852662916,46.73907129,146.36,146.35,6.8298]
[1750852663117,41.76444129,146.36,146.35,6.8298]
[1750852663304,46.73907058,146.36,146.35,6.8298]
[1750852664218,45.52977851,146.36,146.35,6.8298]
[1750852664919,45.52977851,146.36,146.3,12.97519829]
[1750852665114,2.15078839,146.34,146.3,15.12598668]
[1750852665315,4.97463,146.33,146.31,10.58868668]
[1750852665613,2.15078839,146.35,146.34,6.8303]
[1750852665815,11.41284612,146.35,146.34,6.8303]
[1750852666725,7.12533996,146.35,146.34,6.8303]
[1750852667020,4.97455157,146.35,146.34,6.8303]
[1750852667218,7.12533996,146.35,146.34,6.8303]
[1750852667924,11.41377694,146.35,146.34,6.8303]
[1750852668619,11.41507016,146.35,146.34,6.8303]
[1750852670229,7.12663318,146.35,146.34,6.8303]
[1750852670522,11.41509338,146.35,146.34,6.8303]
[1750852671515,6.43924859,146.35,146.34,6.8303]
[1750852671828,11.41580616,146.35,146.34,6.8303]
[1750852673931,7.12734596,146.35,146.34,6.8303]
[1750852674131,11.38946223,146.35,146.34,6.8303]
[1750852674632,11.32677565,146.35,146.34,6.8303]
[1750852676034,11.32677565,146.35,146.31,8.43789829]
[1750852676225,2.15078839,146.32,146.31,8.43789829]
[1750852676831,2.15078839,146.32,146.3,4.5373]
[1750852677827,2.15078839,146.32,146.31,8.44742029]
[1750852678137,2.15078839,146.32,146.31,15.27912029]
[1750852678338,7.06524215,146.32,146.31,6.8317]
[1750852678931,7.06524215,146.32,146.29,8.44742029]
[1750852678932,41.16524215,146.32,146.29,8.44742029]
[1750852679231,2.15078839,146.3,146.24,36.4597]
[1750852679432,16.00546615,146.31,146.24,36.4597]
[1750852679433,4.91445376,146.29,146.24,36.4597]
[1750852679635,2.15078839,146.28,146.24,38.61048839]
[1750852680236,3.36340483,146.3,146.29,6.8324]
[1750852680434,8.27305352,146.3,146.29,6.8324]
[1750852681832,37.46340483,146.32,146.31,6.8317]
[1750852682035,42.37240241,146.32,146.27,8.45445843]
[1750852682337,4.90899758,146.31,146.27,8.45445843]
[1750852682632,37.46340483,146.32,146.31,6.8317]
[1750852682829,42.37011042,146.32,146.31,6.8317]
[1750852684636,8.27014805,146.32,146.31,6.8317]
[1750852684840,4.90674322,146.32,146.31,6.8317]
[1750852685932,3.36340483,146.34,146.33,6.8308]
[1750852686133,7.61377664,146.34,146.33,6.8308]
[1750852686337,12.5022458,146.34,146.33,6.8308]
[1750852686532,3.36340483,146.34,146.33,6.8308]
[1750852686732,8.25187399,146.34,146.33,6.8308]
[1750852687137,3.36340483,146.34,146.33,6.8308]
[1750852687339,8.25161026,146.34,146.33,6.8308]
[1750852687739,8.25161521,146.34,146.33,6.8308]
[1750852688940,8.25161521,146.34,146.29,8.42812114]
[1750852689135,3.36340483,146.3,146.26,8.42812114]
[1750852689937,3.36340483,146.3,146.25,8.42812114]
[1750852690234,3.36340483,146.3,146.29,6.8326]
[1750852691533,3.36340483,146.3,146.23,2.429]
[1750852691534,8.25142302,146.3,146.25,8.42812114]
[1750852691733,3.36340483,146.3,146.25,8.42812114]
[1750852692335,3.36340483,146.3,146.26,8.42812114]
[1750852692537,3.36340483,146.3,146.29,6.8326]
[1750852692940,34.12,146.31,146.27,8.42812114]
[1750852693241,34.12,146.31,146.3,6.8322]
[1750852693441,39.00292853,146.31,146.3,6.8322]
[1750852693743,39.00296414,146.31,146.3,6.8322]
[1750852694341,34.12,146.31,146.3,6.8322]
[1750852695340,3.36340483,146.32,146.31,6.8317]
[1750852695647,4.88162502,146.33,146.28,13.01602114]
[1750852695846,37.58340483,146.34,146.28,13.01602114]
[1750852696147,37.58340483,146.34,146.33,6.8308]
[1750852696342,42.46478324,146.34,146.33,6.8308]
[1750852698849,37.58340483,146.34,146.33,6.8308]
[1750852699152,42.47708551,146.34,146.33,6.8308]
[1750852699346,37.58340483,146.34,146.33,6.8308]
[1750852699649,42.47708189,146.34,146.32,6.831]
[1750852699844,37.58340483,146.34,146.28,13.01602114]
[1750852700048,37.58340483,146.34,146.29,6.8324]
[1750852700049,3.36340483,146.31,146.29,6.8324]
[1750852700442,10.19510483,146.31,146.26,8.42812114]
[1750852700647,4.89423061,146.3,146.26,8.42812114]
[1750852700952,10.19520483,146.31,146.26,8.42812114]
[1750852701251,3.36340483,146.29,146.28,6.8329]
[1750852701447,3.36340483,146.29,146.26,8.42812114]
[1750852701755,3.36340483,146.29,146.28,6.8331]
[1750852703261,3.36340483,146.29,146.27,6.8335]
[1750852703758,34.22,146.3,146.28,6.833]
[1750852704058,3.36340483,146.29,146.28,6.833]
[1750852715665,3.36340483,146.29,146.25,8.42812114]
[1750852716564,3.36340483,146.29,146.28,6.8331]
[1750852718353,34.22,146.3,146.29,6.8326]
[1750852721457,34.22,146.3,146.28,6.8329]
[1750852722152,3.36340483,146.29,146.27,6.8333]
[1750852722353,3.36340483,146.29,146.26,8.42812114]
[1750852722664,3.36340483,146.29,146.27,6.8331]
[1750852723369,7.57408078,146.29,146.24,8.42812114]
[1750852723567,3.36340483,146.27,146.24,8.42812114]
[1750852724161,3.36340483,146.26,146.25,6.8343]
[1750852724466,8.20333121,146.26,146.25,6.8343]
[1750852726070,3.36340483,146.26,146.25,6.8343]
[1750852726263,8.20022096,146.26,146.25,6.8343]
[1750852727666,4.83681613,146.26,146.25,6.8343]
[1750852727871,8.20011321,146.26,146.25,6.8343]
[1750852728264,3.36340483,146.26,146.25,6.8343]
[1750852736170,37.48340483,146.26,146.25,6.8343]
[1750852746183,3.36340483,146.28,146.27,6.8333]
[1750852749387,34.12,146.29,146.28,6.8331]
[1750852749592,37.48340483,146.29,146.28,6.8331]
[1750852751290,34.12,146.29,146.28,6.8331]
[1750852751792,37.48340483,146.29,146.24,15.43475288]
[1750852751988,3.36340483,146.27,146.24,15.43475288]
[1750852753086,3.36340483,146.27,146.26,6.8336]
[1750852758888,3.36340483,146.27,146.25,6.8343]
[1750852759306,3.36340483,146.27,146.23,8.43355288]
[1750852759584,3.36340483,146.25,146.24,6.8349]
[1750852759791,37.48340483,146.25,146.24,6.8349]
[1750852762497,34.12,146.25,146.24,6.8349]
[1750852765595,4.19813801,146.27,146.23,8.43355288]
[1750852765807,37.48340483,146.28,146.24,8.43355288]
[1750852766102,3.36340483,146.26,146.24,8.43355288]
[1750852766305,3.36340483,146.26,146.25,6.8345]
[1750852767007,34.12,146.28,146.27,6.8336]
[1750852767008,37.48340483,146.28,146.27,6.8336]
[1750852767198,41.68324398,146.28,146.27,6.8336]
[1750852767408,38.31983915,146.28,146.27,6.8336]
[1750852767602,34.12,146.28,146.27,6.8336]
[1750852772203,40.9532,146.28,146.26,6.8338]
[1750852772409,3.36340483,146.27,146.24,8.43355288]
[1750852772907,3.36340483,146.27,146.25,6.8342]
[1750852776512,3.36340483,146.26,146.25,6.8342]
[1750852786324,3.36340483,146.26,146.24,15.26825288]
[1750852786621,3.36340483,146.26,146.2,7.14]
[1750852786622,3.36340483,146.26,146.23,8.43355288]
[1750852787122,3.36340483,146.24,146.23,15.26875288]
[1750852790231,2.15405232,146.24,146.23,15.26895288]
[1750852793538,40.9534,146.28,146.25,6.8341]
[1750852793741,2.15405232,146.26,146.25,6.8341]
[1750852793940,6.54541286,146.26,146.25,6.8341]
[1750852795538,4.39121025,146.26,146.25,6.8341]
[1750852795739,6.54526257,146.26,146.25,6.8341]
[1750852797845,2.15405232,146.26,146.25,6.8341]
[1750852798545,34.12,146.28,146.27,6.8336]
[1750852798733,40.66585155,146.28,146.27,6.8336]
[1750852802549,6.54585155,146.28,146.27,6.8336]
[1750852803250,6.54585155,146.28,146.26,6.8338]
[1750852803442,2.15405232,146.27,146.17,4.6072]
[1750852803749,2.15405232,146.24,146.23,6.8354]
[1750852803947,4.39712021,146.26,146.22,2.2961]
[1750852804149,34.12,146.27,146.22,2.2961]
[1750852804449,2.15405232,146.25,146.22,2.2961]
[1750852804654,2.15405232,146.25,146.22,14.95038651]
[1750852804842,2.15405232,146.25,146.24,8.436191]
[1750852805353,2.15405232,146.25,146.24,15.271191]
[1750852805649,8.98885232,146.25,146.23,8.436191]
[1750852805949,6.55124889,146.24,146.22,6.8357]
[1750852806254,2.15405232,146.23,146.22,6.8357]
[1750852806453,2.15405232,146.23,146.21,6.8362]
[1750852806644,2.15405232,146.22,146.21,6.8362]
[1750852806948,2.15405232,146.22,146.19,6.8372]
[1750852807154,2.15405232,146.2,146.19,6.8372]
[1750852807544,2.15405232,146.2,146.18,9.1449]
[1750852807746,2.15405232,146.19,146.18,9.1449]
[1750852808044,2.15405232,146.19,146.18,17.59345962]
[1750852808349,3.36776474,146.2,146.19,6.837]
[1750852808556,8.21912233,146.2,146.19,6.837]
[1750852808852,3.36776474,146.2,146.19,6.837]
[1750852809448,8.21877065,146.2,146.19,6.837]
[1750852809752,4.85100591,146.2,146.19,6.837]
[1750852810149,4.85100591,146.21,146.2,6.8368]
[1750852812454,3.36776474,146.22,146.21,6.8364]
[1750852812654,8.20895529,146.22,146.21,6.8364]
[1750852815255,3.36776474,146.22,146.21,6.8364]
[1750852817652,3.36776474,146.22,146.2,6.8367]
[1750852817852,3.36776474,146.22,146.17,8.44855962]
[1750852818057,3.36776474,146.22,146.11,16.8971192]
[1750852818058,3.36776474,146.19,146.13,8.44855962]
[1750852818252,34.12,146.18,146.13,8.44855962]
[1750852818449,37.48776474,146.19,146.14,10.76745962]
[1750852818951,37.48776474,146.19,146.18,6.8378]
[1750852820158,3.36776474,146.21,146.2,6.8368]
[1750852820945,34.12,146.22,146.21,6.8364]
[1750852821354,34.12,146.26,146.2,8.44855962]
[1750852821548,37.48776474,146.26,146.2,8.44855962]
[1750852822158,37.48776474,146.26,146.19,5.62486474]
[1750852822559,37.48776474,146.26,146.19,2.2571]
[1750852822755,3.36776474,146.24,146.19,2.2571]
[1750852822957,10.20276474,146.24,146.19,2.2571]
[1750852823360,3.36776474,146.22,146.19,2.2571]
[1750852823562,37.48776474,146.22,146.2,6.8364]
[1750852823764,37.48776474,146.22,146.17,2.2056]
[1750852823960,44.32376474,146.22,146.17,2.2056]
[1750852824566,3.36776474,146.2,146.17,2.2056]
[1750852825071,3.36776474,146.2,146.18,6.8378]
[1750852825370,3.36776474,146.2,146.17,2.2056]
[1750852825878,3.36776474,146.2,146.18,6.8378]
[1750852826173,3.36776474,146.2,146.17,2.2056]
[1750852826361,3.36776474,146.2,146.18,6.8374]
[1750852828468,3.36776474,146.2,146.19,6.8373]
[1750852830467,8.37621017,146.2,146.18,6.8375]
[1750852830661,3.36776474,146.2,146.18,6.8375]
[1750852831863,6.8364,146.21,146.18,6.8375]
[1750852832070,3.36776474,146.19,146.18,6.8375]
[1750852833363,3.36776474,146.19,146.14,8.4212423]
[1750852833571,3.36776474,146.16,146.14,8.4212423]
[1750852833969,34.12,146.17,146.13,10.8341423]
[1750852834172,3.36776474,146.15,146.13,2.4129]
[1750852834769,3.36776474,146.15,146.14,6.8392]
[1750852839878,34.12,146.17,146.13,2.4129]
[1750852840073,39.10906465,146.17,146.13,2.4129]